bitfinex/quotes_ETHUSD_20250914
["timestamp","ask_amount","ask_price","bid_price","bid_amount"]
[1757891969191,7.06605445,4623.2,4623.1,0.3093]
[1757891969398,21.26323968,4623.2,4623.1,0.001]
[1757891969626,20.84660568,4623.2,4623.1,0.001]
[1757891970232,5.80716968,4623.2,4623.1,0.001]
[1757891970548,20.76503268,4623.2,4623.1,0.001]
[1757891971046,21.23943268,4623.2,4623.1,0.001]
[1757891971244,23.36357595,4623.2,4623.1,0.001]
[1757891971543,39.19771295,4623.2,4623.1,0.001]
[1757891973663,31.41778295,4623.2,4623.1,0.001]
[1757891973858,13.82664068,4623.2,4623.1,0.8006]
[1757891974150,13.18659868,4623.2,4623.1,1.2467]
[1757891974322,5.49226968,4623.2,4623.1,1.2467]
[1757891974513,16.10614668,4623.2,4623.1,1.2467]
[1757891975561,21.15395068,4623.2,4623.1,1.2467]
[1757891976044,15.82647068,4623.2,4623.1,1.2467]
[1757891976354,13.06727368,4623.2,4623.1,1.2467]
[1757891976651,13.36491368,4623.2,4623.1,0.8006]
[1757891977074,13.36500394,4623.2,4623.1,0.8006]
[1757891977218,13.36500394,4623.2,4623.1,1.2467]
[1757891977519,17.22654094,4623.2,4623.1,1.2467]
[1757891977720,20.50979504,4623.2,4623.1,0.001]
[1757891978759,38.77561404,4623.2,4623.1,0.001]
[1757891982205,38.00721404,4623.2,4623.1,0.001]
[1757891982366,38.30121404,4623.2,4623.1,0.001]
[1757891982565,38.77561404,4623.2,4623.1,0.001]
[1757891983168,38.30121404,4623.2,4623.1,0.001]
[1757891985369,18.06649404,4623.2,4623.1,0.8006]
[1757891985585,16.34363994,4623.2,4623.1,1.2467]
[1757891986003,20.27621494,4623.2,4623.1,1.2467]
[1757891986473,15.85721494,4623.2,4623.1,1.2467]
[1757891986669,13.81537794,4623.2,4623.1,3.40975076]
[1757891986901,20.50488194,4623.2,4623.1,1.2467]
[1757891987071,20.79888194,4623.2,4623.1,0.001]
[1757891987275,20.50488194,4623.2,4623.1,0.001]
[1757891987678,20.50488194,4623.2,4623.1,0.313]
[1757891988012,27.70641714,4623.2,4623.1,0.001]
[1757891988311,27.31361614,4623.2,4623.1,0.001]
[1757891988878,27.31361811,4623.2,4623.1,0.001]
[1757891989109,28.43048611,4623.2,4623.1,0.001]
[1757891989594,28.20072811,4623.2,4623.1,0.001]
[1757891989806,27.31752711,4623.2,4623.1,0.001]
[1757891990207,27.25260811,4623.2,4623.1,0.001]
[1757891990414,21.46993911,4623.2,4623.1,0.313]
[1757891990597,19.79482911,4623.2,4623.1,0.313]
[1757891991226,7.54205011,4623.2,4623.1,0.313]
[1757891991386,23.25738991,4623.2,4623.1,0.313]
[1757891992194,23.31487791,4623.2,4623.1,0.001]
[1757891992485,24.87527791,4623.2,4623.1,0.001]
[1757891993198,32.58806591,4623.2,4623.1,0.001]
[1757891993399,32.11366591,4623.2,4623.1,0.001]
[1757891994330,32.90220591,4623.2,4623.1,0.001]
[1757891994905,35.47815774,4623.2,4623.1,0.001]
[1757891995319,39.15331374,4623.2,4623.1,0.001]
[1757891998342,9.15331374,4623.2,4623.1,0.001]
[1757891998593,37.01416191,4623.2,4623.1,0.001]
[1757891998751,36.8118,4623.2,4623.1,0.001]
[1757891999243,37.01425773,4623.2,4623.1,0.001]
[1757892000558,40.88299792,4623.2,4623.1,0.001]
[1757892000928,41.53305561,4623.2,4623.1,0.001]
[1757892001256,43.26990744,4623.2,4623.1,0.001]
[1757892001460,13.26990744,4623.2,4623.1,0.001]
[1757892001662,43.67220744,4623.2,4623.1,0.001]
[1757892002021,44.97320744,4623.2,4623.1,0.001]
[1757892002241,43.67220744,4623.2,4623.1,0.001]
[1757892002448,13.67220744,4623.2,4623.1,0.001]
[1757892002655,43.67220744,4623.2,4623.1,0.001]
[1757892003326,44.25444881,4623.2,4623.1,0.001]
[1757892005460,43.67220744,4623.2,4623.1,0.001]
[1757892005655,13.67220744,4623.2,4623.1,0.001]
[1757892005965,43.67220744,4623.2,4623.1,0.001]
[1757892006722,13.26990744,4623.2,4623.1,0.001]
[1757892006927,43.26990744,4623.2,4623.1,0.001]
[1757892008230,43.83447532,4623.2,4623.1,0.001]
[1757892009479,43.83339036,4623.2,4623.1,0.001]
[1757892009866,13.83339036,4623.2,4623.1,0.001]
[1757892010037,40.20639036,4623.2,4623.1,0.001]
[1757892010238,43.83239036,4623.2,4623.1,0.001]
[1757892011369,43.95356603,4623.2,4623.1,0.001]
[1757892012851,43.30350834,4623.2,4623.1,0.001]
[1757892013054,47.06846378,4623.2,4623.1,0.001]
[1757892013294,47.06846378,4623.2,4622.7,0.001]
[1757892013295,3.792,4623.1,4622.7,0.001]
[1757892013445,4.06797169,4622.8,4622.7,0.001]
[1757892013774,41.33040509,4622.8,4622.7,0.001]
[1757892013944,42.64146032,4622.8,4622.7,0.001]
[1757892014339,42.64077765,4622.8,4622.7,0.001]
[1757892014587,43.3086201,4622.8,4622.7,0.001]
[1757892014752,44.04223495,4622.8,4622.7,0.001]
[1757892014955,44.62338117,4622.8,4622.7,0.001]
[1757892015277,14.62338117,4622.8,4622.7,0.001]
[1757892015483,14.62324183,4622.8,4622.7,0.001]
[1757892019305,14.04209561,4622.8,4622.7,0.001]
[1757892019990,15.34109561,4622.8,4622.7,0.001]
[1757892021878,16.11938046,4622.8,4622.7,0.001]
[1757892023007,12.06512392,4622.8,4622.7,0.001]
[1757892023984,11.66282392,4622.8,4622.7,0.001]
[1757892026010,15.12682392,4622.8,4622.7,0.001]
[1757892026226,13.38442392,4622.8,4622.7,0.001]
[1757892026516,17.01020795,4622.8,4622.7,0.001]
[1757892027082,17.85590795,4622.8,4622.7,0.001]
[1757892027479,18.6341928,4622.8,4622.7,0.001]
[1757892027680,17.45360795,4622.8,4622.7,0.001]
[1757892027882,20.28749353,4622.8,4622.7,0.001]
[1757892028294,3.9,4622.7,4622.6,0.001]
[1757892028489,6.82710248,4622.7,4622.6,0.001]
[1757892028696,7.98560248,4622.7,4622.6,0.001]
[1757892028894,8.72149519,4622.7,4622.6,0.001]
[1757892029280,9.09748004,4622.7,4622.6,0.001]
[1757892030212,9.09763005,4622.7,4622.6,0.001]
[1757892030932,11.1891452,4622.7,4622.6,0.7785]
[1757892031892,7.5631452,4622.7,4622.6,0.7785]
[1757892032094,10.34899337,4622.7,4622.6,0.7785]
[1757892032314,9.04999337,4622.7,4622.6,0.7785]
[1757892034008,9.34419337,4622.7,4622.6,0.001]
[1757892034212,9.34427768,4622.7,4622.6,0.001]
[1757892034587,9.05007768,4622.7,4622.6,0.001]
[1757892034783,10.08506355,4622.7,4622.6,0.001]
[1757892036489,10.37926355,4622.7,4622.6,0.001]
[1757892037086,10.81406355,4622.7,4622.6,0.001]
[1757892037720,10.37926355,4622.7,4622.6,0.001]
[1757892038228,10.81406355,4622.7,4622.6,0.001]
[1757892039426,11.5923484,4622.7,4622.6,0.001]
[1757892039626,11.9946484,4622.7,4622.2,0.001]
[1757892039824,3.792,4622.3,4622.2,0.001]
[1757892039998,9.40382974,4622.3,4622.2,0.001]
[1757892040331,11.18007082,4622.3,4622.2,0.001]
[1757892040646,11.26678032,4622.3,4622.2,0.001]
[1757892040795,12.69794824,4622.3,4622.2,0.001]
[1757892040993,12.90005199,4622.3,4622.2,0.001]
[1757892041309,12.77907871,4622.3,4622.2,0.001]
[1757892042139,13.34907871,4622.3,4622.2,0.7966]
[1757892042427,11.46819286,4622.3,4622.2,0.7966]
[1757892043827,7.84219286,4622.3,4622.2,0.7966]
[1757892044005,9.36981325,4622.3,4622.2,0.7966]
[1757892044208,9.83516848,4622.3,4622.2,0.7966]
[1757892044734,9.74845898,4622.3,4622.2,0.7966]
[1757892044942,10.04265898,4622.3,4622.2,0.4891]
[1757892045106,10.04265898,4622.3,4622.2,0.001]
[1757892045440,10.93906548,4622.3,4622.2,0.001]
[1757892045741,10.93806548,4622.3,4622.2,0.001]
[1757892046898,10.93806548,4622.3,4622.1,0.001]
[1757892047100,1.45945898,4622.2,4622.1,0.4891]
[1757892048032,13.28245898,4622.2,4622.1,0.4891]
[1757892048223,15.33892613,4622.2,4622.1,0.7966]
[1757892049716,15.9218792,4622.2,4622.1,0.7966]
[1757892050035,15.13682238,4622.2,4622.1,0.4891]
[1757892050337,15.13682238,4622.2,4622.1,0.001]
[1757892050338,16.21638222,4622.2,4622.1,0.001]
[1757892050633,15.33922932,4622.2,4622.1,0.001]
[1757892052023,11.71422932,4622.2,4622.1,0.3085]
[1757892052222,15.92218292,4622.2,4622.1,0.7966]
[1757892052635,11.50518292,4622.2,4622.1,0.7966]
[1757892052839,12.49076217,4622.2,4622.1,1.2543]
[1757892054104,13.58706217,4622.2,4622.1,0.001]
[1757892054302,14.60161577,4622.2,4622.1,0.001]
[1757892054501,14.17001577,4622.2,4622.1,0.001]
[1757892054700,15.87974583,4622.2,4622.1,0.001]
[1757892054968,15.57544583,4622.2,4622.1,0.001]
[1757892058055,15.87974583,4622.2,4622.1,0.001]
[1757892058369,15.72839223,4622.2,4622.1,0.001]
[1757892058720,15.81510905,4622.2,4622.1,0.001]
[1757892058922,3.9,4622.1,4621.7,0.001]
[1757892059151,0.792,4621.8,4621.7,0.001]
[1757892059320,4.417,4621.8,4621.7,0.001]
[1757892059750,4.61941614,4621.8,4621.7,0.001]
[1757892059934,4.417,4621.8,4621.7,0.001]
[1757892060131,4.42559383,4621.8,4621.7,1.218]
[1757892060333,4.42459383,4621.8,4621.7,1.218]
[1757892060531,4.42459383,4621.8,4621.7,0.7858]
[1757892060757,4.42459383,4621.8,4621.7,1.218]
[1757892060963,4.62701162,4621.8,4621.7,1.218]
[1757892061838,4.42459383,4621.8,4621.7,1.218]
[1757892062032,4.42459383,4621.8,4621.7,4.05188558]
[1757892062231,3.624,4621.8,4621.7,4.05188558]
[1757892062451,5.287,4621.8,4621.7,4.05188558]
[1757892062647,5.287,4621.8,4621.7,1.218]
[1757892062846,5.287,4621.8,4621.7,0.7858]
[1757892063447,1.663,4621.8,4621.7,0.2976]
[1757892063660,5.71073832,4621.8,4621.7,0.7858]
[1757892063967,5.71073832,4621.8,4621.7,1.218]
[1757892065262,5.91319648,4621.8,4621.7,1.218]
[1757892067972,5.91319648,4621.8,4621.7,4.05188558]
[1757892067973,5.48945816,4621.8,4621.7,4.05188558]
[1757892069072,5.78515816,4621.8,4621.7,0.001]
[1757892070392,6.24965816,4621.8,4621.7,0.001]
[1757892070578,6.92126007,4621.8,4621.7,0.001]
[1757892071755,6.45676007,4621.8,4621.7,0.001]
[1757892071960,6.92126007,4621.8,4621.7,0.001]
[1757892072161,7.4859642,4621.8,4621.7,0.001]
[1757892072356,7.48594937,4621.8,4621.7,0.001]
[1757892072893,7.48594832,4621.8,4621.7,0.001]
[1757892073260,10.48594832,4621.8,4621.7,0.001]
[1757892073499,3.108,4621.7,4621.6,0.001]
[1757892073715,5.87272354,4621.7,4621.6,0.001]
[1757892073875,6.16842354,4621.7,4621.6,0.001]
[1757892074206,5.58559801,4621.7,4621.6,0.001]
[1757892076679,5.38315573,4621.7,4621.6,0.001]
[1757892076882,5.58538284,4621.7,4621.6,0.001]
[1757892077500,5.12088284,4621.7,4621.6,0.001]
[1757892080903,5.12076803,4621.7,4621.6,0.001]
[1757892081704,5.12276803,4621.7,4621.6,0.001]
[1757892082906,2.12276803,4621.7,4621.6,0.001]
[1757892084417,1.82706803,4621.7,4621.6,0.7858]
[1757892084912,3.9351123,4621.7,4621.6,0.7858]
[1757892086440,3.9351123,4621.7,4621.6,1.218]
[1757892087128,3.93509616,4621.7,4621.6,1.218]
[1757892087830,9.13309616,4621.7,4621.6,1.218]
[1757892088029,9.59945706,4621.7,4621.6,1.218]
[1757892088232,10.72570277,4621.7,4621.6,1.218]
[1757892088427,10.72571751,4621.7,4621.6,1.218]
[1757892088930,10.72571751,4621.7,4621.6,0.001]
[1757892088931,11.02141751,4621.7,4621.6,0.001]
[1757892089143,10.72571751,4621.7,4621.6,0.7858]
[1757892089343,10.72571751,4621.7,4621.6,1.218]
[1757892089494,10.72571751,4621.7,4621.6,0.7858]
[1757892089898,11.01271751,4621.7,4621.6,0.001]
[1757892090355,10.72571751,4621.7,4621.6,0.001]
[1757892091117,11.01271751,4621.7,4621.6,0.001]
[1757892091318,11.48771751,4621.7,4621.6,0.001]
[1757892091923,11.01271751,4621.7,4621.6,0.001]
[1757892092124,11.26646815,4621.7,4621.6,0.001]
[1757892092345,10.97946815,4621.7,4621.6,0.7889]
[1757892092556,10.97946815,4621.7,4621.6,1.249]
[1757892092755,10.97946815,4621.7,4621.6,0.7889]
[1757892095770,11.26646815,4621.7,4621.6,0.001]
[1757892096285,10.97946815,4621.7,4621.6,0.001]
[1757892097657,10.80010725,4621.7,4621.6,0.001]
[1757892097866,10.97888977,4621.7,4621.6,0.001]
[1757892099265,11.56111792,4621.7,4621.6,0.001]
[1757892099861,11.56111792,4621.7,4621.6,0.2978]
[1757892100071,11.56122158,4621.7,4621.6,0.7889]
[1757892102474,11.56122158,4621.7,4621.6,0.64811737]
[1757892103569,11.84822158,4621.7,4621.5,0.001]
[1757892103807,3.07634739,4621.6,4621.5,0.001]
[1757892103941,3.33355311,4621.6,4621.5,0.001]
[1757892104142,3.62055311,4621.6,4621.5,0.001]
[1757892109797,3.14555311,4621.6,4621.5,0.001]
[1757892109964,2.27632496,4621.6,4621.5,0.001]
[1757892113169,2.27653214,4621.6,4621.5,0.001]
[1757892116506,2.27853214,4621.6,4621.5,0.001]
[1757892117203,2.86101927,4621.6,4621.5,0.001]
[1757892117411,2.27853214,4621.6,4621.5,0.001]
[1757892118013,2.27853214,4621.6,4621.5,0.3059]
[1757892118307,2.27853214,4621.6,4621.5,0.8005]
[1757892119410,2.57953214,4621.6,4621.5,0.4956]
[1757892119612,2.57953214,4621.6,4621.5,0.001]
[1757892119789,3.62231927,4621.6,4621.5,0.001]
[1757892122584,3.03983214,4621.6,4621.2,0.001]
[1757892122781,0.792,4621.4,4621.2,0.001]
[1757892123125,5.30465626,4621.5,4621.1,0.001]
[1757892123126,0.108,4621.2,4621.1,0.001]
[1757892123422,5.02431347,4621.2,4621.1,0.001]
[1757892123720,6.15594983,4621.2,4621.1,0.001]
[1757892123935,7.03600088,4621.2,4621.1,0.001]
[1757892124085,7.12273745,4621.2,4621.1,0.001]
[1757892124481,7.89869878,4621.2,4621.1,0.001]
[1757892125627,7.81196221,4621.2,4621.1,0.001]
[1757892125919,3.792,4621.1,4621.0,0.001]
[1757892126123,5.68968915,4621.1,4621.0,0.001]
[1757892126351,6.72325869,4621.1,4621.0,0.001]
[1757892127000,7.4985632,4621.1,4621.0,0.001]
[1757892128431,6.72325869,4621.1,4621.0,0.001]
[1757892128928,7.4985632,4621.1,4621.0,0.001]
[1757892130152,6.72325869,4621.1,4621.0,0.001]
[1757892130658,7.49763605,4621.1,4621.0,0.001]
[1757892131158,6.72325869,4621.1,4621.0,0.001]
[1757892132067,6.72325869,4621.1,4620.8,0.08]
[1757892132224,5.455,4620.9,4620.8,0.08]
[1757892132552,6.12259396,4620.9,4620.8,0.08]
[1757892132868,7.23139766,4620.9,4620.8,0.08]
[1757892133073,7.23139766,4620.9,4620.0,0.001]
[1757892133361,0.792,4620.7,4620.0,0.001]
[1757892133544,6.55389044,4620.7,4620.0,0.001]
[1757892133719,7.98064475,4620.7,4620.0,0.001]
[1757892134658,7.57834475,4620.7,4620.0,0.001]
[1757892134860,6.80419001,4620.7,4620.1,0.4558]
[1757892135235,6.04289001,4620.7,4620.6,0.4558]
[1757892135437,8.40648018,4620.7,4620.6,0.764]
[1757892135664,8.986558,4620.7,4620.6,0.764]
[1757892135851,9.45196783,4620.7,4620.6,0.764]
[1757892137235,9.45196783,4620.7,4620.6,1.1991]
[1757892137236,5.25089001,4620.7,4620.6,1.1991]
[1757892137437,8.74933844,4620.7,4620.6,0.764]
[1757892137636,9.21474827,4620.7,4620.6,0.764]
[1757892138262,9.21474827,4620.7,4620.6,0.4558]
[1757892138463,9.21474827,4620.7,4620.6,0.764]
[1757892138970,9.21474827,4620.7,4620.6,1.1991]
[1757892139376,10.19423088,4620.7,4620.6,1.1991]
[1757892140977,10.19423088,4620.7,4620.6,0.764]
[1757892141360,7.19423088,4620.7,4620.6,0.764]
[1757892141563,5.74933844,4620.7,4620.6,0.764]
[1757892142365,6.05033844,4620.7,4620.6,0.001]
[1757892144178,5.74933844,4620.7,4620.6,0.764]
[1757892145691,0.792,4620.6,4620.3,0.001]
[1757892145990,3.08736559,4620.6,4620.3,0.001]
[1757892146284,3.08736559,4620.6,4620.5,0.764]
[1757892146285,5.71499665,4620.6,4620.5,0.764]
[1757892146494,5.24958682,4620.6,4620.5,0.764]
[1757892146657,5.55058682,4620.6,4620.5,0.001]
[1757892146989,6.01088682,4620.6,4620.5,0.001]
[1757892149272,6.59192785,4620.6,4620.5,0.001]
[1757892150894,0.792,4620.5,4620.3,0.001]
[1757892151096,4.61418413,4620.4,4620.3,0.001]
[1757892151287,5.63600693,4620.4,4620.3,0.001]
[1757892151586,6.21731841,4620.4,4620.3,0.001]
[1757892151803,5.63600693,4620.4,4620.3,0.001]
[1757892151960,6.57255566,4620.4,4620.3,0.001]
[1757892152162,7.3245753,4620.4,4620.3,0.001]
[1757892153172,7.3245753,4620.4,4620.1,0.001]
[1757892153377,0.58187606,4620.2,4620.1,0.001]
[1757892153702,4.40406019,4620.2,4620.1,0.001]
[1757892153999,5.51861268,4620.2,4620.1,0.001]
[1757892154367,4.93673662,4620.2,4620.1,4.04496742]
[1757892154581,4.06939086,4620.2,4620.1,4.04496742]
[1757892155605,4.06939086,4620.2,4620.1,1.2093]
[1757892155910,4.65126692,4620.2,4620.1,0.7651]
[1757892156674,4.65119677,4620.2,4620.1,0.7651]
[1757892157106,4.06932071,4620.2,4620.1,0.7651]
[1757892157273,4.68884235,4620.2,4620.1,0.7651]
[1757892160919,4.68884235,4620.2,4620.1,0.71670953]
[1757892161815,0.108,4620.1,4620.0,0.001]
[1757892161986,0.31011398,4620.1,4620.0,0.001]
[1757892162184,0.54799694,4620.1,4620.0,0.3047]
[1757892162384,1.23933837,4620.1,4620.0,0.3047]
[1757892162817,1.23933837,4620.1,4620.0,0.7651]
[1757892165727,1.23933837,4620.1,4620.0,0.001]
[1757892166096,1.23933837,4620.1,4620.0,0.4614]
[1757892167396,6.43933837,4620.1,4620.0,0.4614]
[1757892167599,6.90417119,4620.1,4620.0,0.4614]
[1757892168912,7.20127119,4620.1,4620.0,0.001]
[1757892169141,7.67107119,4620.1,4620.0,0.001]
[1757892169452,3.792,4620.0,4619.5,0.001]
[1757892169749,0.792,4619.6,4619.5,0.001]
[1757892169949,6.57421398,4619.6,4619.5,0.001]
[1757892170135,7.28265618,4619.6,4619.5,0.001]
[1757892170449,7.8644479,4619.6,4619.5,0.001]
[1757892170611,8.82862601,4619.6,4619.5,0.001]
[1757892170811,0.9,4619.5,4619.0,0.001]
[1757892171021,0.792,4619.3,4619.0,0.001]
[1757892171243,0.2971,4619.1,4619.0,0.001]
[1757892171424,0.98178588,4619.1,4619.0,0.001]
[1757892171626,1.45143811,4619.1,4619.0,0.001]
[1757892171963,1.6822369,4619.1,4619.0,0.001]
[1757892172113,1.48027069,4619.1,4619.0,0.001]
[1757892172553,1.68216013,4619.1,4619.0,0.001]
[1757892174716,2.47416013,4619.1,4619.0,0.001]
[1757892175342,6.50565185,4619.1,4619.0,0.001]
[1757892175519,6.97108522,4619.1,4619.0,0.001]
[1757892175726,6.97108522,4619.1,4617.7,0.4906]
[1757892175727,3.792,4619.0,4617.7,0.4906]
[1757892175939,3.792,4618.8,4617.7,0.4906]
[1757892176255,5.48488944,4618.7,4617.7,0.4906]
[1757892176550,0.792,4618.5,4617.7,0.4906]
[1757892176754,0.792,4618.3,4617.8,2.83566742]
[1757892176919,0.792,4618.1,4617.8,2.83566742]
[1757892177119,3.619,4618.0,4617.8,2.83566742]
[1757892177352,3.82088944,4618.0,4617.8,3.32626742]
[1757892177657,0.21667296,4617.9,4617.8,3.32626742]
[1757892177818,1.2664292,4617.9,4617.8,3.32626742]
[1757892178019,1.46831864,4617.9,4617.8,3.32626742]
[1757892178729,1.46831864,4617.9,4617.8,2.83566742]
[1757892179227,1.46831864,4617.9,4617.5,3.32626742]
[1757892179228,1.77851864,4617.9,4617.5,3.32626742]
[1757892179431,5.87093186,4617.8,4617.5,0.4906]
[1757892179742,0.3051,4617.6,4617.1,3.31106742]
[1757892179946,3.619,4617.5,4617.2,0.4754]
[1757892180135,3.82512672,4617.5,4617.1,2.83566742]
[1757892180338,0.20118194,4617.4,4617.3,0.4754]
[1757892182659,0.97028194,4617.4,4616.9,2.83566742]
[1757892182958,3.62,4617.3,4617.0,3.31106742]
[1757892183134,0.40225462,4617.2,4617.1,0.4754]
[1757892183459,0.3051,4617.1,4616.8,0.08]
[1757892183659,3.6184,4617.0,4616.8,0.08]
[1757892183862,1.664,4616.9,4616.8,0.08]
[1757892184026,2.71724428,4616.9,4616.8,0.08]
[1757892184738,3.48634428,4616.9,4616.8,0.08]
[1757892185230,4.27834428,4616.9,4616.8,0.08]
[1757892185427,4.27789226,4616.9,4616.8,0.08]
[1757892186360,4.07698,4616.9,4616.8,0.08]
[1757892186560,4.27782466,4616.9,4616.8,0.08]
[1757892188455,7.27782466,4616.9,4616.8,0.08]
[1757892188657,7.72752466,4616.9,4616.8,0.08]
[1757892188967,7.27782466,4616.9,4616.8,0.08]
[1757892189757,4.27782466,4616.9,4616.8,0.08]
[1757892190272,4.72752466,4616.9,4616.8,0.08]
[1757892190650,7.72752466,4616.9,4616.8,0.08]
[1757892190848,8.18960573,4616.9,4616.8,0.08]
[1757892191685,7.98876107,4616.9,4616.8,0.08]
[1757892191863,3.9,4616.8,4616.5,0.001]
[1757892192076,0.792,4616.6,4616.5,0.001]
[1757892192280,1.29759649,4616.6,4616.5,0.001]
[1757892192600,2.39777851,4616.6,4616.5,0.001]
[1757892193155,2.19728202,4616.6,4616.5,0.001]
[1757892193353,2.39762962,4616.6,4616.5,0.001]
[1757892193553,3.76132449,4616.6,4616.5,0.001]
[1757892194152,6.93162449,4616.6,4616.5,0.001]
[1757892194483,9.93262449,4616.6,4616.5,0.001]
[1757892194782,10.39470556,4616.6,4616.5,0.001]
[1757892195764,5.98170556,4616.6,4616.5,0.001]
[1757892195963,9.14062449,4616.6,4616.5,0.001]
[1757892196207,9.60270556,4616.6,4616.5,0.001]
[1757892196616,10.39470556,4616.6,4616.5,0.001]
[1757892198692,10.84440556,4616.6,4616.5,0.001]
[1757892199010,3.9,4616.5,4616.0,0.001]
[1757892199302,3.792,4616.3,4616.1,0.0024]
[1757892199505,12.9221,4616.2,4616.1,0.0024]
[1757892199715,14.21277462,4616.2,4616.1,0.0024]
[1757892199886,15.80605333,4616.2,4616.1,0.0024]
[1757892201395,16.25575333,4616.2,4616.1,0.0024]
[1757892201905,3.9,4616.1,4616.0,0.001]
[1757892202108,4.56267109,4616.1,4616.0,0.001]
[1757892202411,6.52297149,4616.1,4616.0,0.001]
[1757892202718,8.29469976,4616.1,4616.0,0.001]
[1757892202920,8.29469976,4616.1,4615.0,0.4754]
[1757892203126,0.792,4615.5,4615.0,0.4754]
[1757892203327,0.792,4615.3,4615.1,0.4754]
[1757892203619,0.792,4615.1,4614.5,3.21836742]
[1757892203831,4.08237569,4615.0,4614.5,3.21836742]
[1757892203983,0.20075691,4614.9,4614.5,3.21836742]
[1757892204183,0.20075691,4614.9,4614.5,0.3827]
[1757892204385,0.35168908,4614.9,4614.8,0.3689]
[1757892204624,0.35168908,4614.9,4614.8,0.8443]
[1757892205635,3.97268908,4614.9,4614.8,0.8443]
[1757892205902,4.49529556,4614.9,4614.8,1.227]
[1757892206422,0.87429556,4614.9,4614.8,1.227]
[1757892206758,3.77193217,4614.9,4614.8,1.227]
[1757892207255,3.77193217,4614.9,4614.8,0.8443]
[1757892209820,3.77193217,4614.9,4614.8,0.0775]
[1757892210035,3.77193217,4614.9,4614.8,0.5324]
[1757892210235,4.14912539,4614.9,4614.8,0.8179]
[1757892210642,4.35010659,4614.9,4614.8,0.8179]
[1757892211813,3.97391337,4614.9,4614.8,4.48960882]
[1757892212011,3.77293217,4614.9,4614.8,4.48960882]
[1757892213713,3.77293217,4614.9,4614.8,0.5324]
[1757892214118,3.77293217,4614.9,4614.8,0.8179]
[1757892214318,4.17032351,4614.9,4614.8,0.8179]
[1757892214663,4.37188811,4614.9,4614.8,0.8179]
[1757892219220,3.97449677,4614.9,4614.8,0.8179]
[1757892219553,3.77293217,4614.9,4614.8,0.8179]
[1757892219748,3.77293217,4614.9,4614.8,0.5324]
[1757892220249,3.97449677,4614.9,4614.8,0.8179]
[1757892220968,3.77293217,4614.9,4614.8,0.8179]
[1757892221170,3.97449677,4614.9,4614.8,0.8179]
[1757892221351,4.37194645,4614.9,4614.8,0.8179]
[1757892221940,0.35249677,4614.9,4614.8,0.8179]
[1757892222241,3.97449677,4614.9,4614.8,0.8179]
[1757892222442,4.72819677,4614.9,4614.8,0.0775]
[1757892222685,4.72819677,4614.9,4614.8,0.0785]
[1757892222980,4.26379677,4614.9,4614.8,0.0785]
[1757892223141,4.69017645,4614.9,4614.8,0.0785]
[1757892223567,4.40087645,4614.9,4614.8,0.0785]
[1757892223974,4.40087645,4614.9,4614.8,0.5334]
[1757892224538,4.40087645,4614.9,4614.8,0.8189]
[1757892224935,4.40139678,4614.9,4614.8,0.8189]
[1757892228053,9.60739678,4614.9,4614.8,0.8189]
[1757892228368,10.06947785,4614.9,4614.8,0.8189]
[1757892230277,9.64309817,4614.9,4614.8,1.2016]
[1757892230575,5.5590171,4614.9,4614.8,1.2016]
[1757892230883,9.1810171,4614.9,4614.8,1.2016]
[1757892231991,9.1810171,4614.9,4614.8,0.8189]
[1757892232768,9.1810171,4614.9,4614.8,4.10790882]
[1757892234183,5.5590171,4614.9,4614.8,4.10790882]
[1757892234368,9.1810171,4614.9,4614.8,4.9013997]
[1757892235391,5.21226506,4614.9,4614.8,10.06834084]
[1757892235700,1.59026506,4614.9,4614.8,10.06834084]
[1757892235995,5.21226506,4614.9,4614.8,10.06834084]
[1757892236489,1.24351302,4614.9,4614.8,10.06834084]
[1757892236698,1.665,4615.6,4614.9,2.16689419]
[1757892236891,1.665,4615.6,4615.5,3.57980882]
[1757892237097,5.287,4615.6,4615.5,4.41810882]
[1757892237399,1.665,4615.6,4615.5,7.41810882]
[1757892237570,1.665,4615.6,4615.5,10.01546741]
[1757892237571,5.287,4615.6,4615.5,10.01546741]
[1757892237895,5.287,4615.6,4615.5,11.23368309]
[1757892239258,5.287,4615.6,4615.5,9.30322777]
[1757892239463,5.287,4615.6,4615.5,7.03540882]
[1757892240965,5.287,4615.6,4615.5,6.74460882]
[1757892241765,5.287,4615.6,4615.5,7.05550882]
[1757892243866,0.4497,4616.7,4615.5,7.05550882]
[1757892243867,5.207,4616.8,4615.6,5.16656556]
[1757892244092,5.286,4616.4,4616.2,3.28900882]
[1757892244400,5.7158,4616.4,4616.2,3.28900882]
[1757892244801,5.84331742,4616.4,4616.2,3.28900882]
[1757892246199,5.41351742,4616.4,4616.2,3.28900882]
[1757892246377,5.41351742,4616.4,4616.2,3.74030882]
[1757892247678,5.41351742,4616.4,4616.2,3.28900882]
[1757892248400,5.84331742,4616.4,4616.2,3.28900882]
[1757892248903,0.2855,4616.3,4616.2,3.28900882]
[1757892249202,0.7153,4616.3,4616.2,3.28900882]
[1757892249719,0.108,4616.2,4615.0,1.1023339]
[1757892249874,4.0498,4616.1,4616.0,0.01629643]
[1757892250067,4.3353,4616.1,4615.4,3.28900882]
[1757892250286,0.4298,4616.0,4615.5,0.01629819]
[1757892250490,3.62,4615.9,4615.5,0.01629819]
[1757892250691,0.2855,4615.6,4615.5,0.01629819]
[1757892250906,3.9055,4615.6,4615.5,0.01629819]
[1757892251081,4.3353,4615.6,4615.5,0.01629819]
[1757892253117,4.3353,4615.6,4615.5,0.0016]
[1757892253410,4.3337,4615.6,4615.4,3.28900882]
[1757892253574,2.0948,4615.5,4615.4,3.28900882]